fUST/lending_fUST_20250812
["ID","MTS","AMOUNT","RATE_DAILY","PERIOD"]
[378670921,1754952656854,-460.0,0.00019726,2]
[378670922,1754952656863,-460.0,0.00019726,2]
[378670923,1754952656872,-460.0,0.00019726,2]
[378670924,1754952656883,-460.0,0.00019726,2]
[378670925,1754952656892,-460.0,0.00019726,2]
[378670926,1754952656902,-460.0,0.00019726,2]
[378670927,1754952656912,-660.32,0.00019726,2]
[378670928,1754952656921,-220.0,0.00019726,2]
[378670929,1754952656931,-460.0,0.00019726,2]
[378670930,1754952656940,-4205.47,0.00019726,2]
[378670931,1754952656949,-460.0,0.00019726,2]
[378670932,1754952656958,-474.92275701,0.00019726,2]
[378670933,1754952656967,-894.59,0.00019726,2]
[378670934,1754952656976,-1246.11,0.00019726,2]
[378670935,1754952656985,-460.0,0.00019726,2]
[378670936,1754952656995,-750.88,0.00019726,2]
[378670937,1754952657004,-3524.02,0.00019726,2]
[378670938,1754952657013,-3810.16,0.00019726,2]
[378670939,1754952657022,-460.0,0.00019726,2]
[378670940,1754952657032,-1123.37,0.00019726,2]
[378670941,1754952657041,-460.0,0.00019726,2]
[378670942,1754952657051,-564.08,0.00019726,2]
[378670943,1754952657061,-460.0,0.00019726,2]
[378670944,1754952657070,-460.0,0.00019726,2]
[378670945,1754952657080,-460.0,0.00019726,2]
[378670946,1754952657089,-693.24,0.00019726,2]
[378670947,1754952657098,-1526.28,0.00019726,2]
[378670948,1754952657107,-890.49,0.00019726,2]
[378670949,1754952657116,-460.0,0.00019726,2]
[378670950,1754952657125,-4463.88,0.00019726,2]
[378670951,1754952657139,-460.0,0.00019726,2]
[378670952,1754952657148,-184.26734,0.00019726,2]
[378670953,1754952657157,-151.0,0.00019726,2]
[378670954,1754952657166,-460.0,0.00019726,2]
[378670955,1754952657176,-209.595268,0.00019726,2]
[378670956,1754952657185,-460.0,0.00019726,2]
[378670957,1754952657194,-460.0,0.00019726,2]
[378670958,1754952657204,-3723.22,0.00019726,2]
[378670959,1754952657214,-460.0,0.00019726,2]
[378670960,1754952657223,-460.0,0.00019726,2]
[378670961,1754952657232,-460.0,0.00019726,2]
[378670962,1754952657241,-460.0,0.00019726,2]
[378670963,1754952657250,-166.96949579,0.00019726,2]
[378670964,1754952657260,-460.0,0.00019726,2]
[378670965,1754952657269,-835.85,0.00019726,2]
[378670966,1754952657278,-460.0,0.00019726,2]
[378670967,1754952657290,-460.0,0.00019726,2]
[378670968,1754952657299,-1336.87,0.00019726,2]
[378670969,1754952657309,-460.0,0.00019726,2]
[378670970,1754952657318,-2449.86,0.00019726,2]
[378670971,1754952657327,-460.0,0.00019726,2]
[378670972,1754952657337,-619.29,0.00019726,2]
[378670973,1754952657346,-613.895363,0.00019726,2]
[378670974,1754952657355,-613.895363,0.00019726,2]
[378670975,1754952657364,-460.0,0.00019726,2]
[378670976,1754952657374,-993.68,0.00019726,2]
[378670977,1754952657383,-613.895363,0.00019726,2]
[378670978,1754952657393,-613.895363,0.00019726,2]
[378670979,1754952657402,-460.0,0.00019726,2]
[378670980,1754952657412,-460.0,0.00019726,2]
[378670981,1754952657421,-460.0,0.00019726,2]
[378670982,1754952657430,-460.0,0.00019726,2]
[378670983,1754952657439,-460.0,0.00019726,2]
[378670984,1754952657449,-460.0,0.00019726,2]
[378670985,1754952657457,-460.0,0.00019726,2]
[378670986,1754952657466,-460.0,0.00019726,2]
[378670987,1754952657475,-460.0,0.00019726,2]
[378670988,1754952657484,-460.0,0.00019726,2]
[378670989,1754952657494,-1908.67,0.00019726,2]
[378670990,1754952657503,-620.5,0.00019726,2]
[378670991,1754952657512,-545.75,0.00019726,2]
[378670992,1754952657521,-460.0,0.00019726,2]
[378670993,1754952657530,-982.64,0.00019726,2]
[378670994,1754952657540,-619.31,0.00019726,2]
[378670995,1754952657550,-1031.76,0.00019726,2]
[378670996,1754952657559,-1238.02,0.00019726,2]
[378670997,1754952657569,-735.87,0.00019726,2]
[378670998,1754952657578,-1381.78,0.00019726,2]
[378670999,1754952657587,-2016.64646436,0.00019726,2]
[378671000,1754952657597,-488.4,0.00019757,2]
[378671001,1754952657606,-2477.7547259,0.00019763,2]
[378671002,1754952657615,-500.0,0.00019773,2]
[378671003,1754952657624,-500.0,0.00019773,2]
[378671004,1754952657634,-500.0,0.00019773,2]
[378671005,1754952657643,-500.0,0.00019773,2]
[378671006,1754952657652,-1864.0,0.00019784,2]
[378671007,1754952657661,-151.0,0.000198,2]
[378671008,1754952657670,-151.0,0.000198,2]
[378671009,1754952657680,-1068.584131,0.00019863,2]
[378671010,1754952657690,-439.077632,0.00019874,15]
[378671011,1754952657700,-1864.0,0.00019879,2]
[378671012,1754952657709,-151.0,0.00019879,2]
[378671013,1754952657718,-151.0,0.00019879,2]
[378671014,1754952657731,-500.0,0.0001988,2]
[378671015,1754952657740,-488.4,0.00019892,2]
[378671016,1754952657749,-151.0,0.000199,2]
[378671017,1754952657758,-151.0,0.000199,2]
[378671018,1754952657767,-151.0,0.000199,2]
[378671019,1754952657776,-151.0,0.000199,2]
[378671020,1754952657785,-151.0,0.000199,2]
[378671021,1754952657794,-1368.398445,0.000199,2]
[378671022,1754952657803,-1150.48633742,0.000199,2]
[378671023,1754952710950,380.533947,0.00021,20]
[378671024,1754952711277,380.533947,0.0002075,20]
[378671025,1754952711580,380.533947,0.000205,20]
[378671026,1754952711868,380.533947,0.0002025,20]
[378671027,1754952712204,380.533947,0.0002,20]
[378671029,1754952760302,522.951458,0.00013699,2]
[378671042,1754953144556,24900.0,0.00018074,2]
[378671045,1754953261218,14497.9225,0.0001901,6]
[378671046,1754953309848,309.445188,0.000205,20]
[378671047,1754953310326,309.445188,0.00023,30]
[378671048,1754953310440,309.445188,0.00023,30]
[378671049,1754953310788,309.445188,0.00023,30]
[378671050,1754953311067,309.445188,0.00023,30]
[378671051,1754953312025,309.445188,0.00023,30]
[378671058,1754953652230,1444.0,0.00029041,120]
[378671061,1754953772028,496.803885,0.00013699,2]
[378671109,1754953832302,-150.0,0.000189,2]
[378671110,1754953832312,-226.54931595,0.00018977,2]
[378671111,1754953832321,-226.54931593,0.00018978,2]
[378671112,1754953832331,-825.91824198,0.00018978,2]
[378671113,1754953832340,-226.54931593,0.00018978,2]
[378671114,1754953832350,-1749.64468504,0.00019,2]
[378671115,1754953832359,-1749.64468501,0.0001902,2]
[378671116,1754953832369,-1749.64468501,0.00019039,2]
[378671117,1754953832379,-1749.64468501,0.00019059,2]
[378671118,1754953832388,-1200.0,0.00019064,2]
[378671119,1754953832399,-300.0,0.00019065,2]
[378671120,1754953832409,-151.8381875,0.00019066,2]
[378671122,1754953832418,-17977.33931691,0.00019066,2]
[378671124,1754953832431,-1038.51203224,0.00019066,2]
[378671126,1754953832443,-1827.74133632,0.00019066,2]
[378671313,1754953838133,-167.59605391,0.00019065,2]
[378671315,1754953838143,-12889.80904942,0.00019066,2]
[378671317,1754953838151,-268.53,0.00019067,3]
[378671319,1754953838161,-805.63,0.00019067,3]
[378671321,1754953838170,-151.566,0.00019072,2]
[378671323,1754953838179,-500.0,0.00019073,2]
[378671325,1754953838188,-500.0,0.00019073,2]
[378671327,1754953838198,-500.0,0.00019073,2]
[378671329,1754953838207,-500.0,0.00019073,2]
[378671331,1754953838216,-500.0,0.00019073,2]
[378671333,1754953838225,-500.0,0.00019076,2]
[378671335,1754953838235,-500.0,0.00019076,2]
[378671337,1754953838244,-500.0,0.00019076,2]
[378671339,1754953838253,-500.0,0.00019076,2]
[378671341,1754953838262,-500.0,0.00019076,2]
[378671343,1754953838271,-320.50081606,0.00019076,2]
[378671345,1754953838280,-264.19742311,0.00019076,2]
[378671347,1754953838289,-990000.01242992,0.00019077,2]
[378671349,1754953838298,-1749.64468501,0.00019078,2]
[378671351,1754953838308,-151.0,0.000191,2]
[378671353,1754953838317,-151.0,0.000191,2]
[378671355,1754953838327,-151.0,0.000191,2]
[378671357,1754953838336,-825.91824196,0.00019165,2]
[378671359,1754953838345,-500.0,0.00019173,2]
[378671360,1754953838355,-500.0,0.00019173,2]
[378671362,1754953838364,-500.0,0.00019173,2]
[378671364,1754953838374,-503.39649047,0.00019173,2]
[378671365,1754953838383,-583.93173583,0.00019173,2]
[378671367,1754953838392,-500.0,0.00019173,2]
[378671369,1754953838401,-500.0,0.00019173,2]
[378671371,1754953838410,-600.0,0.00019173,2]
[378671373,1754953838419,-500.0,0.00019173,2]
[378671375,1754953838428,-341.62190171,0.00019173,2]
[378671377,1754953838438,-158.12880838,0.00019173,2]
[378671379,1754953838447,-158.04855829,0.00019173,2]
[378671381,1754953838456,-500.0,0.00019173,2]
[378671382,1754953838466,-349.65332276,0.00019173,2]
[378671383,1754953838474,-500.0,0.00019173,2]
[378671384,1754953838484,-500.0,0.00019173,2]
[378671385,1754953838493,-500.0,0.00019173,2]
[378671386,1754953838503,-500.0,0.00019173,2]
[378671387,1754953838512,-168.46954688,0.00019173,2]
[378671388,1754953838522,-340.09270154,0.00019173,2]
[378671389,1754953838531,-157.46260862,0.00019173,2]
[378671390,1754953838540,-160.06680905,0.00019173,2]
[378671391,1754953838549,-400.13434124,0.00019173,2]
[378671392,1754953838559,-500.0,0.00019173,2]
[378671393,1754953838569,-500.0,0.00019173,2]
[378671394,1754953838578,-500.0,0.00019173,2]
[378671395,1754953838587,-281.26999205,0.00019173,2]
[378671396,1754953838597,-500.0,0.00019173,2]
[378671397,1754953838606,-160.06638324,0.00019173,2]
[378671398,1754953838615,-500.0,0.00019173,2]
[378671399,1754953838624,-158.46341349,0.00019173,2]
[378671400,1754953838633,-261.45627301,0.00019173,2]
[378671401,1754953838643,-158.46471794,0.00019173,2]
[378671402,1754953838652,-160.46559195,0.00019173,2]
[378671403,1754953838662,-260.55026,0.00019173,2]
[378671404,1754953838671,-160.06669641,0.00019173,2]
[378671405,1754953838681,-500.0,0.00019173,2]
[378671406,1754953838691,-158.04855828,0.00019173,2]
[378671407,1754953838702,-160.04917295,0.00019173,2]
[378671408,1754953838713,-159.45114521,0.00019173,2]
[378671409,1754953838722,-340.52011149,0.00019173,2]
[378671410,1754953838732,-158.44868159,0.00019173,2]
[378671411,1754953838741,-500.0,0.00019173,2]
[378671412,1754953838751,-500.0,0.00019173,2]
[378671413,1754953838761,-338.07546911,0.00019173,2]
[378671414,1754953838771,-500.0,0.00019173,2]
[378671415,1754953838780,-500.0,0.00019173,2]
[378671416,1754953838790,-500.0,0.00019173,2]
[378671417,1754953838800,-500.0,0.00019173,2]
[378671418,1754953838809,-500.0,0.00019173,2]
[378671419,1754953838819,-500.0,0.00019173,2]
[378671420,1754953838829,-160.17133691,0.00019173,2]
[378671421,1754953838839,-500.0,0.00019173,2]
[378671422,1754953838847,-165.05050708,0.00019173,2]
[378671423,1754953838857,-500.0,0.00019173,2]
[378671424,1754953838866,-500.0,0.00019173,2]
[378671425,1754953838875,-160.46192181,0.00019173,2]
[378671426,1754953838885,-158.04855828,0.00019173,2]
[378671427,1754953838894,-500.0,0.00019173,2]
[378671428,1754953838906,-158.46538666,0.00019173,2]
[378671429,1754953838916,-188.47570756,0.00019173,2]
[378671430,1754953838925,-158.46577498,0.00019173,2]
[378671431,1754953838935,-500.0,0.00019173,2]
[378671432,1754953838944,-157.04278845,0.00019173,2]
[378671433,1754953838954,-258.42704119,0.00019173,2]
[378671434,1754953838963,-160.06318468,0.00019173,2]
[378671435,1754953838972,-185.25659566,0.00019173,2]
[378671436,1754953838981,-500.0,0.00019173,2]
[378671437,1754953838991,-158.46444877,0.00019173,2]
[378671438,1754953839001,-500.0,0.00019173,2]
[378671439,1754953839010,-500.0,0.00019173,2]
[378671440,1754953839020,-448.81982586,0.00019173,2]
[378671441,1754953839030,-500.0,0.00019173,2]
[378671442,1754953839039,-500.0,0.00019173,2]
[378671443,1754953839048,-500.0,0.00019173,2]
[378671444,1754953839057,-500.0,0.00019173,2]
[378671445,1754953839067,-649.13665048,0.00019173,2]
[378671446,1754953839076,-500.0,0.00019173,2]
[378671447,1754953839085,-500.0,0.00019173,2]
[378671448,1754953839094,-500.0,0.00019173,2]
[378671449,1754953839103,-173.54530953,0.00019173,2]
[378671450,1754953839114,-500.78623683,0.00019173,2]
[378671451,1754953839124,-621.55254894,0.00019173,2]
[378671452,1754953839133,-216.82734154,0.00019173,2]
[378671453,1754953839143,-500.0,0.00019173,2]
[378671454,1754953839152,-500.0,0.00019173,2]
[378671455,1754953839161,-165.91152342,0.00019173,2]
[378671456,1754953839171,-500.0,0.00019173,2]
[378671457,1754953839180,-154.43239774,0.00019173,2]
[378671458,1754953839189,-168.72970159,0.00019173,2]
[378671459,1754953839199,-500.0,0.00019173,2]
[378671460,1754953839210,-521.33546473,0.00019173,2]
[378671461,1754953839227,-500.0,0.00019173,2]
[378671462,1754953839247,-500.0,0.00019173,2]
[378671463,1754953839258,-500.0,0.00019173,2]
[378671464,1754953839267,-500.0,0.00019173,2]
[378671465,1754953839280,-445.11431374,0.00019173,2]
[378671466,1754953839289,-500.0,0.00019173,2]
[378671467,1754953839299,-500.0,0.00019173,2]
[378671468,1754953839309,-500.0,0.00019173,2]
[378671469,1754953839318,-500.0,0.00019173,2]
[378671470,1754953839328,-500.0,0.00019173,2]
[378671471,1754953839337,-500.0,0.00019173,2]
[378671472,1754953839348,-201.64324224,0.00019177,2]
[378671473,1754953839357,-8407.28756486,0.00019178,2]
[378671474,1754953839367,-460.0,0.00019178,2]
[378671475,1754953839376,-489.45452389,0.00019178,2]
[378671476,1754953839386,-2000.0,0.00019178,2]
[378671477,1754953839395,-2000.0,0.00019178,2]
[378671478,1754953839404,-651.504,0.00019178,2]
[378671479,1754953839414,-479.64,0.00019178,2]
[378671480,1754953839424,-460.0,0.00019178,2]
[378671481,1754953839433,-460.0,0.00019178,2]
[378671482,1754953839443,-500.0,0.00019178,2]
[378671483,1754953839452,-500.0,0.00019178,2]
[378671484,1754953839461,-500.0,0.00019178,2]
[378671485,1754953839471,-627.72879212,0.00019178,2]
[378671486,1754953839480,-460.0,0.00019178,2]
[378671487,1754953839490,-416.68215033,0.00019178,2]
[378671488,1754953839499,-460.0,0.00019178,2]
[378671489,1754953839508,-460.0,0.00019178,2]
[378671490,1754953839518,-460.0,0.00019178,2]
[378671491,1754953839527,-460.0,0.00019178,2]
[378671492,1754953839538,-460.0,0.00019178,2]
[378671493,1754953839547,-460.0,0.00019178,2]
[378671494,1754953839557,-460.0,0.00019178,2]
[378671495,1754953839567,-460.0,0.00019178,2]
[378671496,1754953839576,-460.0,0.00019178,2]
[378671497,1754953839586,-460.0,0.00019178,2]
[378671498,1754953839595,-460.0,0.00019178,2]
[378671499,1754953839604,-460.0,0.00019178,2]
[378671500,1754953839614,-460.0,0.00019178,2]
[378671501,1754953839623,-460.0,0.00019178,2]
[378671502,1754953839633,-500.0,0.00019178,2]
[378671503,1754953839642,-500.0,0.00019178,2]
[378671504,1754953839651,-500.0,0.00019178,2]
[378671505,1754953839661,-500.0,0.00019178,2]
[378671506,1754953839670,-319.98230024,0.00019178,2]
[378671507,1754953839679,-460.0,0.00019178,2]
[378671508,1754953839689,-460.0,0.00019178,2]
[378671509,1754953839703,-460.0,0.00019178,2]
[378671510,1754953839712,-460.0,0.00019178,2]
[378671511,1754953839723,-460.0,0.00019178,2]
[378671512,1754953839733,-460.0,0.00019178,2]
[378671513,1754953839742,-482.28639257,0.00019178,2]
[378671514,1754953839753,-460.0,0.00019178,2]
[378671515,1754953839763,-462.56,0.00019178,2]
[378671516,1754953839772,-460.0,0.00019178,2]
[378671517,1754953839782,-500.0,0.00019178,2]
[378671518,1754953839792,-590.61,0.00019178,2]
[378671519,1754953839801,-460.0,0.00019178,2]
[378671520,1754953839810,-460.0,0.00019178,2]
[378671521,1754953839820,-460.0,0.00019178,2]
[378671522,1754953839829,-460.0,0.00019178,2]
[378671523,1754953839838,-460.0,0.00019178,2]
[378671524,1754953839848,-460.0,0.00019178,2]
[378671526,1754953839858,-460.0,0.00019178,2]
[378671528,1754953839867,-460.0,0.00019178,2]
[378671530,1754953839877,-357.05511494,0.00019178,2]
[378671531,1754953839886,-595.42,0.00019178,2]
[378671533,1754953839896,-460.0,0.00019178,2]
[378671535,1754953839906,-460.0,0.00019178,2]
[378671538,1754953839915,-4275.17,0.00019178,2]
[378671539,1754953839924,-534.00012802,0.00019178,2]
[378671541,1754953839934,-460.0,0.00019178,2]
[378671566,1754953840147,-171.62878727,0.00019178,2]
[378671568,1754953840157,-460.0,0.00019178,2]
[378671570,1754953840167,-460.0,0.00019178,2]
[378671572,1754953840177,-460.0,0.00019178,2]
[378671574,1754953840186,-460.0,0.00019178,2]
[378671576,1754953840196,-460.0,0.00019178,2]
[378671578,1754953840206,-460.0,0.00019178,2]
[378671580,1754953840217,-460.0,0.00019178,2]
[378671582,1754953840227,-460.0,0.00019178,2]
[378671584,1754953840237,-460.0,0.00019178,2]
[378671586,1754953840247,-460.0,0.00019178,2]
[378671588,1754953840257,-460.0,0.00019178,2]
[378671590,1754953840266,-500.64,0.00019178,2]
[378671592,1754953840276,-460.0,0.00019178,2]
[378671594,1754953840286,-460.0,0.00019178,2]
[378671596,1754953840295,-460.0,0.00019178,2]
[378671598,1754953840305,-460.0,0.00019178,2]
[378671600,1754953840315,-460.0,0.00019178,2]
[378671602,1754953840324,-460.0,0.00019178,2]
[378671603,1754953840333,-460.0,0.00019178,2]
[378671604,1754953840343,-460.0,0.00019178,2]
[378671605,1754953840352,-460.0,0.00019178,2]
[378671606,1754953840362,-460.0,0.00019178,2]
[378671607,1754953840371,-460.0,0.00019178,2]
[378671608,1754953840381,-460.0,0.00019178,2]
[378671609,1754953840391,-460.0,0.00019178,2]
[378671610,1754953840401,-460.0,0.00019178,2]
[378671611,1754953840411,-480.52481825,0.00019178,2]
[378671612,1754953840420,-460.0,0.00019178,2]
[378671613,1754953840430,-1000.0,0.00019178,2]
[378671614,1754953840440,-460.0,0.00019178,2]
[378671615,1754953840450,-460.86815289,0.00019178,2]
[378671616,1754953840459,-460.0,0.00019178,2]
[378671617,1754953840474,-569.52717049,0.00019178,2]
[378671618,1754953840483,-460.0,0.00019178,2]
[378671619,1754953840493,-225.11203712,0.00019178,2]
[378671620,1754953840503,-460.0,0.00019178,2]
[378671621,1754953840512,-460.61577241,0.00019178,2]
[378671622,1754953840521,-460.0,0.00019178,2]
[378671623,1754953840531,-460.0,0.00019178,2]
[378671624,1754953840540,-460.0,0.00019178,2]
[378671625,1754953840550,-460.0,0.00019178,2]
[378671626,1754953840559,-460.0,0.00019178,2]
[378671627,1754953840568,-460.0,0.00019178,2]
[378671628,1754953840578,-460.0,0.00019178,2]
[378671629,1754953840587,-460.0,0.00019178,2]
[378671630,1754953840597,-460.0,0.00019178,2]
[378671631,1754953840607,-460.0,0.00019178,2]
[378671632,1754953840616,-460.0,0.00019178,2]
[378671633,1754953840626,-460.0,0.00019178,2]
[378671634,1754953840635,-460.0,0.00019178,2]
[378671636,1754953840645,-464.2112639,0.00019178,2]
[378671638,1754953840654,-460.0,0.00019178,2]
[378671639,1754953840663,-460.0,0.00019178,2]
[378671640,1754953840673,-460.0,0.00019178,2]
[378671641,1754953840683,-460.0,0.00019178,2]
[378671642,1754953840692,-460.0,0.00019178,2]
[378671643,1754953840704,-460.0,0.00019178,2]
[378671644,1754953840715,-460.0,0.00019178,2]
[378671645,1754953840724,-460.0,0.00019178,2]
[378671646,1754953840733,-460.0,0.00019178,2]
[378671647,1754953840743,-460.0,0.00019178,2]
[378671648,1754953840752,-912.24,0.00019178,2]
[378671649,1754953840761,-460.0,0.00019178,2]
[378671650,1754953840771,-460.0,0.00019178,2]
[378671651,1754953840780,-460.0,0.00019178,2]
[378671652,1754953840790,-460.0,0.00019178,2]
[378671653,1754953840799,-460.0,0.00019178,2]
[378671654,1754953840808,-460.0,0.00019178,2]
[378671655,1754953840818,-460.0,0.00019178,2]
[378671656,1754953840828,-460.0,0.00019178,2]
[378671657,1754953840837,-460.0,0.00019178,2]
[378671658,1754953840847,-460.0,0.00019178,2]
[378671659,1754953840856,-463.61835215,0.00019178,2]
[378671660,1754953840865,-1197.46,0.00019178,2]
[378671661,1754953840874,-460.0,0.00019178,2]
[378671662,1754953840883,-460.0,0.00019178,2]
[378671663,1754953840892,-460.0,0.00019178,2]
[378671664,1754953840902,-722.69,0.00019178,2]
[378671665,1754953840911,-460.0,0.00019178,2]
[378671666,1754953840919,-460.0,0.00019178,2]
[378671667,1754953840928,-460.0,0.00019178,2]
[378671668,1754953840937,-460.0,0.00019178,2]
[378671669,1754953840946,-460.0,0.00019178,2]
[378671670,1754953840955,-460.0,0.00019178,2]
[378671671,1754953840965,-460.0,0.00019178,2]
[378671672,1754953840974,-460.0,0.00019178,2]
[378671673,1754953840983,-460.0,0.00019178,2]
[378671674,1754953840992,-518.04767297,0.00019178,2]
[378671675,1754953841001,-460.0,0.00019178,2]
[378671676,1754953841010,-460.0,0.00019178,2]
[378671677,1754953841019,-460.0,0.00019178,2]
[378671678,1754953841029,-460.0,0.00019178,2]
[378671679,1754953841038,-322.29616032,0.00019178,7]
[378671680,1754953841047,-460.0,0.00019178,2]
[378671681,1754953841056,-460.0,0.00019178,2]
[378671682,1754953841065,-460.0,0.00019178,2]
[378671683,1754953841074,-460.0,0.00019178,2]
[378671684,1754953841083,-676.43,0.00019178,2]
[378671685,1754953841092,-460.0,0.00019178,2]
[378671686,1754953841101,-494.72,0.00019178,2]
[378671687,1754953841110,-460.0,0.00019178,2]
[378671688,1754953841119,-460.0,0.00019178,2]
[378671689,1754953841128,-460.0,0.00019178,2]
[378671690,1754953841138,-460.0,0.00019178,2]
[378671691,1754953841147,-460.0,0.00019178,2]
[378671692,1754953841156,-460.0,0.00019178,2]
[378671693,1754953841164,-460.0,0.00019178,2]
[378671694,1754953841174,-460.0,0.00019178,2]
[378671695,1754953841183,-460.0,0.00019178,2]
[378671696,1754953841192,-596.99,0.00019178,2]
[378671697,1754953841201,-460.0,0.00019178,2]
[378671698,1754953841210,-460.0,0.00019178,2]
[378671699,1754953841221,-3414.16,0.00019178,2]
[378671700,1754953841230,-460.0,0.00019178,2]
[378671701,1754953841239,-460.0,0.00019178,2]
[378671702,1754953841249,-460.0,0.00019178,2]
[378671703,1754953841258,-460.0,0.00019178,2]
[378671704,1754953841267,-2848.58,0.00019178,2]
[378671705,1754953841276,-460.0,0.00019178,2]
[378671706,1754953841286,-557.03,0.00019178,2]
[378671707,1754953841295,-460.0,0.00019178,2]
[378671708,1754953841304,-653.64,0.00019178,2]
[378671709,1754953841314,-460.0,0.00019178,2]
[378671710,1754953841323,-460.0,0.00019178,2]
[378671711,1754953841333,-460.0,0.00019178,2]
[378671712,1754953841342,-542.54,0.00019178,2]
[378671713,1754953841352,-460.0,0.00019178,2]
[378671714,1754953841361,-460.0,0.00019178,2]
[378671715,1754953841370,-460.0,0.00019178,2]
[378671716,1754953841380,-460.0,0.00019178,2]
[378671717,1754953841389,-460.0,0.00019178,2]
[378671718,1754953841398,-460.0,0.00019178,2]
[378671719,1754953841408,-460.0,0.00019178,2]
[378671720,1754953841417,-1103.66,0.00019178,2]
[378671721,1754953841427,-460.0,0.00019178,2]
[378671722,1754953841436,-460.0,0.00019178,2]
[378671723,1754953841445,-460.0,0.00019178,2]
[378671724,1754953841455,-460.0,0.00019178,2]
[378671725,1754953841465,-460.0,0.00019178,2]
[378671726,1754953841475,-460.0,0.00019178,2]
[378671727,1754953841485,-460.0,0.00019178,2]
[378671728,1754953841494,-460.0,0.00019178,2]
[378671729,1754953841504,-466.05045501,0.00019178,2]
[378671730,1754953841513,-460.0,0.00019178,2]
[378671731,1754953841522,-460.0,0.00019178,2]
[378671732,1754953841532,-460.0,0.00019178,2]
[378671733,1754953841541,-2083.85,0.00019178,2]
[378671734,1754953841551,-460.0,0.00019178,2]
[378671735,1754953841561,-460.0,0.00019178,2]
[378671736,1754953841570,-460.0,0.00019178,2]
[378671737,1754953841579,-460.0,0.00019178,2]
[378671738,1754953841589,-583.49854419,0.00019178,2]
[378671739,1754953841598,-460.0,0.00019178,2]
[378671740,1754953841608,-460.0,0.00019178,2]
[378671741,1754953841617,-460.0,0.00019178,2]
[378671742,1754953841627,-460.0,0.00019178,2]
[378671743,1754953841636,-460.0,0.00019178,2]
[378671744,1754953841645,-460.0,0.00019178,2]
[378671745,1754953841654,-462.8670049,0.00019178,2]
[378671746,1754953841664,-460.0,0.00019178,2]
[378671747,1754953841673,-460.0,0.00019178,2]
[378671748,1754953841683,-460.0,0.00019178,2]
[378671749,1754953841692,-460.0,0.00019178,2]
[378671750,1754953841705,-437.57077797,0.00019178,2]
[378671751,1754953841714,-531.34,0.00019178,2]
[378671752,1754953841723,-460.0,0.00019178,2]
[378671753,1754953841732,-460.0,0.00019178,2]
[378671754,1754953841742,-460.0,0.00019178,2]
[378671755,1754953841751,-460.0,0.00019178,2]
[378671756,1754953841761,-460.0,0.00019178,2]
[378671757,1754953841770,-476.27,0.00019178,2]
[378671758,1754953841781,-460.0,0.00019178,2]
[378671759,1754953841790,-460.0,0.00019178,2]
[378671760,1754953841799,-460.0,0.00019178,2]
[378671761,1754953841808,-460.0,0.00019178,2]
[378671762,1754953841817,-460.0,0.00019178,2]
[378671763,1754953841826,-460.0,0.00019178,2]
[378671764,1754953841836,-460.0,0.00019178,2]